bitfinex/quotes_ETHUSD_20240819
["timestamp","ask_amount","ask_price","bid_price","bid_amount"]
[1724055580957,0.30671067,2623.5,2623.1,4.30154]
[1724055581153,0.63794425,2623.5,2623.1,4.30154]
[1724055584250,0.63794425,2623.5,2623.1,6.97007]
[1724055584451,0.63794425,2623.5,2623.1,4.30153]
[1724055585449,0.63794425,2623.5,2623.1,6.97007]
[1724055586387,0.63794425,2623.5,2623.1,4.30153]
[1724055586588,0.29295442,2623.4,2623.1,4.30153]
[1724055586784,0.29295442,2623.4,2623.1,1.633]
[1724055586985,0.33085104,2623.3,2623.0,2.66867]
[1724055587287,0.33085104,2623.3,2622.8,7.30188]
[1724055587288,2.2629,2623.2,2622.8,7.30188]
[1724055587587,2.2629,2623.2,2623.0,1.633]
[1724055587753,0.35987061,2623.3,2623.0,1.633]
[1724055587754,0.33085104,2623.1,2623.0,1.633]
[1724055588150,2.3017,2623.3,2623.0,1.633]
[1724055588350,0.33085104,2623.1,2623.0,1.633]
[1724055588774,2.3017,2623.3,2623.0,1.633]
[1724055588980,0.33085104,2623.1,2623.0,1.633]
[1724055589490,2.3017,2623.3,2623.0,1.633]
[1724055589702,0.33085104,2623.1,2623.0,1.633]
[1724055590594,2.3017,2623.3,2623.0,4.30168]
[1724055590761,0.33085104,2623.1,2623.0,4.30168]
[1724055590967,2.3017,2623.3,2623.0,4.30168]
[1724055591172,0.33085104,2623.1,2623.0,4.30168]
[1724055591398,2.3017,2623.3,2623.0,4.30168]
[1724055591594,0.33085104,2623.1,2623.0,4.30168]
[1724055591786,2.3017,2623.3,2623.0,4.30168]
[1724055592297,0.33085104,2623.2,2623.0,4.30168]
[1724055592476,2.82035477,2623.5,2623.0,6.97027]
[1724055592882,0.33085104,2623.4,2623.0,6.97027]
[1724055593063,0.33085104,2623.4,2623.1,2.66858]
[1724055594286,0.33085104,2623.4,2623.1,2.66852]
[1724055594489,0.33085104,2623.4,2623.3,2.66839]
[1724055594664,2.3596,2623.7,2623.3,2.66839]
[1724055594864,0.33084118,2623.4,2623.3,2.66839]
[1724055595186,2.3596,2623.7,2623.3,2.66839]
[1724055595698,0.33084118,2623.6,2623.3,2.66839]
[1724055597604,0.33084118,2623.6,2623.4,3.9634]
[1724055597808,0.33084118,2623.6,2623.5,10.33497]
[1724055598112,2.3883,2624.3,2624.0,2.66761]
[1724055598398,0.33084118,2624.2,2624.0,2.66761]
[1724055598567,0.6027553,2624.2,2624.0,2.66761]
[1724055598768,0.27191412,2624.2,2624.1,1.633]
[1724055598973,0.01534402,2624.5,2624.1,4.30058]
[1724055599172,0.61071436,2624.5,2624.1,4.30058]
[1724055599407,0.61071436,2624.5,2624.1,2.66758]
[1724055600529,0.61071436,2624.5,2623.9,6.96848]
[1724055600809,0.61071436,2624.5,2624.0,2.66767]
[1724055601003,0.65490737,2624.4,2624.0,2.66767]
[1724055601582,0.65490737,2624.4,2623.9,6.96843]
[1724055601777,0.65490737,2624.4,2623.9,4.30071]
[1724055602100,3.32218737,2624.4,2623.9,4.30071]
[1724055602306,0.42551785,2624.3,2623.9,4.30071]
[1724055605809,2.411,2624.2,2623.9,4.30071]
[1724055607116,1.22605723,2624.3,2623.9,4.30071]
[1724055607117,0.42551785,2624.3,2623.9,4.30071]
[1724055607321,3.09373938,2624.4,2623.9,4.30071]
[1724055607491,0.33098188,2624.2,2623.9,4.30071]
[1724055607839,4.01701675,2624.4,2623.9,4.30071]
[1724055607982,0.33098188,2624.1,2623.9,4.30071]
[1724055608179,0.80053938,2624.3,2624.0,2.66766]
[1724055609307,1.55305757,2624.3,2624.0,2.66766]
[1724055610923,0.80053938,2624.2,2624.0,2.66766]
[1724055611221,0.80053938,2624.2,2623.7,4.30091]
[1724055611404,0.54209471,2624.1,2623.7,4.30091]
[1724055612307,1.34263409,2624.1,2623.7,1.633]
[1724055612508,4.01021409,2624.1,2623.7,1.633]
[1724055613719,6.32931409,2624.1,2623.5,2.66811]
[1724055614018,0.38118266,2624.0,2623.7,5.04003]
[1724055614223,0.80053938,2624.0,2623.7,5.04003]
[1724055616313,0.80053938,2623.9,2623.7,5.04003]
[1724055617529,0.80053938,2623.8,2623.6,1.633]
[1724055617727,1.00063927,2623.8,2623.6,1.633]
[1724055617928,0.80053938,2623.8,2623.6,1.633]
[1724055618398,3.66765952,2623.9,2623.6,1.633]
[1724055618399,0.80053938,2623.7,2623.6,1.633]
[1724055618605,0.80053938,2623.8,2623.6,4.30102]
[1724055620023,0.80053938,2623.8,2623.7,2.66798]
[1724055622428,19.47366917,2623.8,2623.7,2.66798]
[1724055622640,19.80460415,2623.8,2623.7,2.66798]
[1724055624331,19.80460415,2623.8,2623.7,4.96268]
[1724055624718,19.80460415,2623.8,2623.7,2.66798]
[1724055625450,19.80460415,2623.8,2623.6,1.633]
[1724055625651,0.79898776,2623.7,2623.6,1.633]
[1724055626055,1.12989064,2623.7,2623.6,1.633]
[1724055626356,1.12989064,2623.7,2623.6,4.30108]
[1724055626919,1.12989064,2623.7,2623.6,1.633]
[1724055628255,19.80302043,2623.7,2623.6,1.633]
[1724055629619,1.12989064,2623.7,2623.3,4.99353]
[1724055629840,0.79898776,2623.6,2623.4,1.633]
[1724055630055,0.79898776,2623.6,2623.2,1.633]
[1724055630238,0.79898776,2623.5,2623.2,1.633]
[1724055630528,1.12989064,2623.5,2623.2,1.633]
[1724055630729,1.12989064,2623.5,2623.2,4.30143]
[1724055631341,1.12989064,2623.5,2623.4,1.633]
[1724055631553,0.33090288,2623.5,2623.4,1.633]
[1724055631863,1.12989064,2623.5,2623.4,1.633]
[1724055632225,0.33090288,2623.5,2623.4,4.30129]
[1724055633447,1.12989064,2623.5,2623.4,4.30129]
[1724055633795,0.33090288,2623.5,2623.4,4.30129]
[1724055633968,0.33090288,2623.5,2623.4,6.63209]
[1724055634329,1.12989064,2623.5,2623.4,6.63209]
[1724055635052,1.12989064,2623.5,2623.4,3.9638]
[1724055640359,0.33090288,2623.5,2623.4,3.9638]
[1724055640527,0.33090288,2623.5,2623.4,6.63209]
[1724055640930,0.33090288,2623.5,2623.4,7.562132]
[1724055641230,0.33090288,2623.5,2623.4,10.230422]
[1724055641461,0.33090288,2623.5,2623.4,13.230422]
[1724055641769,0.79978824,2623.8,2623.7,7.78066]
[1724055641962,0.79978824,2623.9,2623.8,5.33576]
[1724055642132,0.79978824,2624.1,2624.0,5.11238]
[1724055642336,0.79978824,2624.1,2624.0,6.74538]
[1724055642537,1.20045952,2624.3,2624.1,5.3351]
[1724055642733,1.20045952,2624.3,2624.1,5.33504]
[1724055642963,1.20045952,2624.3,2624.2,2.66747]
[1724055643238,0.79958836,2624.3,2624.2,10.339709]
[1724055643447,0.79958836,2624.3,2624.2,9.39844]
[1724055643647,0.79958836,2624.4,2624.3,2.66737]
[1724055644652,1.20045952,2624.5,2624.3,2.66737]
[1724055645376,0.79916241,2624.4,2624.3,2.66737]
[1724055647075,1.20045952,2624.5,2624.3,2.66737]
[1724055647319,0.79917339,2624.4,2624.3,2.66737]
[1724055647783,0.79917339,2624.4,2624.2,6.96789]
[1724055648139,0.79917339,2624.4,2624.3,2.66737]
[1724055649142,0.79917339,2624.5,2624.3,2.66737]
[1724055652479,0.79917339,2624.5,2624.4,1.633]
[1724055654290,0.79917339,2624.5,2624.3,2.66737]
[1724055654995,0.79917339,2624.5,2624.4,4.30027]
[1724055655154,0.79917339,2624.6,2624.4,4.30027]
[1724055655355,0.79917339,2624.6,2624.4,4.30022]
[1724055657952,0.79917339,2624.7,2624.4,6.96743]
[1724055658170,0.79917339,2624.6,2624.4,4.30021]
[1724055659408,0.79917339,2624.7,2624.4,4.30021]
[1724055660595,0.79917339,2624.6,2624.4,4.30021]
[1724055662996,0.79917339,2624.6,2624.4,2.66721]
[1724055663294,0.79917339,2624.6,2624.4,4.30021]
[1724055667000,0.79917339,2624.7,2624.4,4.30021]
[1724055667588,0.3727833,2624.6,2624.4,4.30021]
[1724055668367,1.17195669,2624.6,2624.4,1.633]
[1724055672115,2.3439,2624.5,2624.0,5.33524]
[1724055672434,3.46644339,2624.4,2623.9,2.2722]
[1724055672584,0.79917339,2624.3,2623.9,3.0]
[1724055673011,0.3727833,2624.2,2624.0,1.633]
[1724055673386,0.79917339,2624.4,2624.0,9.38849]
[1724055673581,0.79917339,2624.4,2624.0,9.38842]
[1724055673786,0.3727364,2624.3,2624.0,9.38842]
[1724055674084,0.3727364,2624.3,2624.1,2.66757]
[1724055675387,0.3727364,2624.3,2624.2,1.633]
[1724055675784,0.79917339,2624.5,2624.2,1.633]
[1724055675985,3.86755952,2624.6,2624.2,1.633]
[1724055675986,0.3727364,2624.3,2624.2,1.633]
[1724055676301,0.79917339,2624.4,2624.2,1.633]
[1724055676499,0.3727364,2624.3,2624.2,1.633]
[1724055676807,0.3727364,2624.3,2624.2,4.30047]
[1724055677475,0.79917339,2624.4,2624.2,4.30047]
[1724055677625,0.3727364,2624.3,2624.2,4.30047]
[1724055677966,0.79917339,2624.5,2624.3,2.66735]
[1724055678546,0.79917339,2624.4,2624.3,2.66735]
[1724055679462,0.79917339,2624.4,2624.2,1.633]
[1724055679630,0.79917339,2624.4,2624.2,4.30042]
[1724055680232,0.79917339,2624.3,2624.2,4.30042]
[1724055680644,0.79917339,2624.3,2624.2,1.633]
[1724055682633,1.17190979,2624.3,2624.2,1.633]
[1724055683034,1.17190979,2624.3,2624.2,6.69747]
[1724055683269,1.57319592,2624.3,2624.2,4.03]
[1724055684263,1.57319592,2624.3,2624.2,1.633]
[1724055684645,1.99309392,2624.3,2624.2,1.633]
[1724055685240,2.39383785,2624.3,2624.2,1.633]
[1724055685847,2.39383785,2624.3,2624.0,1.633]
[1724055686053,1.61983774,2624.2,2624.0,1.633]
[1724055686236,1.60120345,2624.2,2623.9,5.66769]
[1724055686437,1.99326442,2624.1,2624.0,1.633]
[1724055686638,1.99326442,2624.1,2624.0,4.30068]
[1724055687241,0.79260108,2624.1,2624.0,4.30068]
[1724055688534,1.99365694,2624.1,2624.0,4.30068]
[1724055689058,0.79260108,2624.1,2624.0,4.30068]
[1724055689257,1.99362341,2624.1,2624.0,4.30068]
[1724055689468,1.99362341,2624.1,2624.0,10.664727]
[1724055691372,1.99362341,2624.1,2624.0,6.75728]
[1724055691876,1.99362341,2624.1,2624.0,1.633]
[1724055692417,1.99362341,2624.1,2624.0,4.30068]
[1724055693145,1.99362341,2624.1,2624.0,1.633]
[1724055693764,2.3125,2624.0,2623.5,2.66812]
[1724055693961,1.20111719,2623.6,2623.3,2.6683]
[1724055694271,0.80031625,2623.4,2623.3,2.6683]
[1724055694644,1.17299092,2623.4,2623.3,2.6683]
[1724055694891,1.17299092,2623.4,2623.3,4.3013]
[1724055695391,0.37267467,2623.4,2623.3,4.3013]
[1724055698359,0.80031625,2623.6,2623.3,4.3013]
[1724055698559,0.37267467,2623.4,2623.3,4.3013]
[1724055698894,0.80031625,2623.6,2623.4,2.66829]
[1724055699621,0.80031625,2623.8,2623.6,2.66808]
[1724055700095,0.80031625,2623.8,2623.7,2.66798]
[1724055701089,0.80031625,2623.8,2623.6,2.66807]
[1724055705058,0.80031625,2623.8,2623.5,4.30119]
[1724055705268,0.80031625,2623.7,2623.5,4.30119]
[1724055705464,0.80031625,2623.7,2623.5,1.633]
[1724055707576,0.80031625,2623.7,2623.5,4.30117]
[1724055707748,0.80031625,2623.8,2623.6,2.66803]
[1724055708188,0.80031625,2624.0,2623.9,2.66778]
[1724055708519,1.60148958,2624.2,2623.9,2.66778]
[1724055708520,0.80031625,2624.2,2624.1,2.66758]
[1724055708711,1.20111719,2624.3,2623.9,6.96847]
[1724055708919,0.79880993,2624.1,2623.9,4.30069]
[1724055709119,0.79880993,2624.1,2623.9,6.96841]
[1724055709419,0.79880993,2624.0,2623.9,4.30069]
[1724055709614,0.79880993,2624.0,2623.7,4.30096]
[1724055710142,0.79880993,2623.9,2623.7,6.96885]
[1724055710434,0.79880993,2623.9,2623.6,2.66807]
[1724055710620,0.79880993,2623.8,2623.5,4.30119]
[1724055711025,1.20314587,2623.8,2623.5,1.633]
[1724055711198,1.20314587,2623.8,2623.3,7.62468]
[1724055711199,0.79880993,2623.6,2623.3,6.96967]
[1724055711399,0.79880993,2623.6,2623.4,2.66828]
[1724055712216,0.79880993,2623.6,2623.5,2.66819]
[1724055712545,0.79880993,2623.6,2623.5,6.96938]
[1724055712546,0.37258577,2623.6,2623.5,6.96938]
[1724055713126,0.37258577,2623.6,2623.5,4.30119]
[1724055713910,0.79880993,2623.8,2623.5,4.30119]
[1724055714107,0.37259317,2623.7,2623.5,4.30119]
[1724055715137,0.37259317,2623.7,2623.6,2.66808]
[1724055716146,0.37259317,2623.7,2623.6,6.273964]
[1724055716347,0.79880993,2624.0,2623.7,5.10773]
[1724055716508,0.79880993,2624.0,2623.8,1.633]
[1724055717744,0.79880993,2624.0,2623.9,2.66778]
[1724055718121,0.79880993,2624.0,2623.8,1.633]
[1724055718323,0.79880993,2623.9,2623.8,4.30084]
[1724055720323,0.79880993,2623.9,2623.8,1.633]
[1724055720532,1.20111719,2623.9,2623.8,1.633]
[1724055721115,1.62108735,2623.9,2623.6,1.633]
[1724055721339,0.79929907,2623.7,2623.6,1.633]
[1724055721649,0.79929907,2623.7,2623.5,2.66815]
[1724055721650,1.20111719,2623.7,2623.5,2.66815]
[1724055721824,0.79932849,2623.6,2623.5,2.66815]
[1724055722727,1.20111719,2623.7,2623.5,2.66815]
[1724055722728,0.79932849,2623.7,2623.5,2.66815]
[1724055723350,0.79932849,2623.7,2623.6,4.30108]
[1724055727133,1.20111719,2623.9,2623.7,2.66798]
[1724055727636,1.99369726,2623.8,2623.7,2.66798]
[1724055727841,0.37262034,2623.8,2623.7,2.66798]
[1724055728044,1.17218407,2623.8,2623.7,8.219358]
[1724055729037,0.37262034,2623.8,2623.7,8.219358]
[1724055730470,0.37262034,2623.8,2623.7,13.887338]
[1724055730821,1.20111719,2624.2,2624.1,2.3426]
[1724055730822,0.79956373,2624.2,2624.1,2.3426]
[1724055731018,1.17218407,2624.2,2624.1,2.3426]
[1724055731263,1.17218407,2624.2,2624.1,7.67776]
[1724055732156,0.37262034,2624.2,2624.1,7.67776]
[1724055732479,0.79956373,2624.2,2624.1,7.67776]
[1724055732622,1.17218407,2624.2,2624.1,7.67776]
[1724055732823,1.17218407,2624.2,2624.1,2.66758]
[1724055732824,1.99363989,2624.2,2624.1,2.66758]
[1724055733061,0.37262034,2624.2,2624.1,2.66758]
[1724055733259,0.79251913,2624.2,2624.1,2.66758]
[1724055733567,0.37262034,2624.2,2624.1,2.66758]
[1724055733928,1.20111719,2624.3,2624.1,2.66758]
[1724055734125,0.37274134,2624.2,2623.9,2.66769]
[1724055734329,0.79955129,2624.0,2623.9,2.66769]
[1724055734725,1.17229263,2624.0,2623.9,2.66769]
[1724055735353,0.37274134,2624.0,2623.9,4.92379]
[1724055735631,0.37274134,2624.0,2623.9,2.66769]
[1724055735831,1.17229263,2624.0,2623.9,2.66769]
[1724055736057,0.37274134,2624.0,2623.9,5.03519]
[1724055736558,0.37274134,2624.0,2623.9,8.636576]
[1724055737268,1.20111719,2624.3,2624.2,2.3817]
[1724055737269,0.79955129,2624.3,2624.2,2.3817]
[1724055737428,1.20111719,2624.5,2624.3,2.66737]
[1724055737429,0.79955129,2624.4,2624.3,2.66737]
[1724055737772,0.79955129,2624.4,2624.3,4.30037]
[1724055738328,0.79955129,2624.4,2624.3,6.96774]
[1724055739554,0.79955129,2624.4,2624.3,2.66737]
[1724055742463,0.79955129,2624.4,2624.3,4.30037]
[1724055742635,1.17229263,2624.4,2624.3,4.30037]
[1724055743037,0.37274134,2624.4,2624.3,4.30037]
[1724055743436,1.17229263,2624.4,2624.3,4.30037]
[1724055744074,0.37274134,2624.4,2624.3,4.30037]
[1724055752783,0.37274134,2624.4,2624.1,4.30051]
[1724055752942,1.40963361,2624.4,2624.1,4.30051]
[1724055753108,1.17229263,2624.4,2624.2,2.66746]
[1724055753318,1.17229263,2624.4,2624.1,4.30051]
[1724055753640,0.79955129,2624.3,2623.9,4.30072]
[1724055753804,0.79955129,2624.1,2623.8,2.66782]
[1724055754210,0.3727364,2624.0,2623.8,2.66782]
[1724055754820,0.3727364,2624.0,2623.9,4.30078]
[1724055755644,0.79955129,2624.1,2623.9,4.30078]
[1724055755929,0.3727364,2624.0,2623.9,4.30078]
[1724055756294,0.79955129,2624.3,2624.1,2.66758]
[1724055756561,0.3727364,2624.2,2624.1,2.66758]
[1724055756847,0.3727364,2624.2,2624.1,5.33516]
[1724055757000,0.79955129,2624.3,2624.2,2.66747]
[1724055757601,1.17228769,2624.3,2624.2,2.66747]
[1724055758695,0.3727364,2624.3,2624.2,2.66747]
[1724055759430,1.17158075,2624.3,2624.2,2.66747]
[1724055759737,1.1715755,2624.3,2624.2,2.66747]
[1724055759917,1.1715755,2624.3,2624.2,10.125445]
[1724055760125,0.3727364,2624.3,2624.2,9.42864]
[1724055760501,1.20111719,2624.7,2624.5,2.66717]
[1724055760502,0.7988391,2624.6,2624.5,2.66717]
[1724055760736,1.1715261,2624.6,2624.5,2.66717]
[1724055761097,0.372687,2624.6,2624.5,2.66717]
[1724055761293,1.57380419,2624.6,2624.5,2.66717]
[1724055761799,1.99365575,2624.6,2624.5,2.66717]
[1724055762937,1.99365575,2624.6,2624.3,2.66733]
[1724055762938,2.39402814,2624.6,2624.3,5.33462]
[1724055763097,0.7988553,2624.4,2624.2,2.6674]
[1724055763296,0.7988553,2624.3,2624.2,2.6674]
[1724055763530,1.1715423,2624.3,2624.2,2.6674]
[1724055768103,1.57096996,2624.3,2624.0,2.66765]
[1724055768301,0.79900893,2624.2,2624.0,2.66765]
[1724055768735,0.372687,2624.1,2624.0,2.66765]
[1724055768943,1.17169593,2624.1,2624.0,2.66765]
[1724055772330,1.17169593,2624.1,2624.0,5.33533]
[1724055773829,1.17279393,2624.1,2624.0,5.33533]
[1724055774030,1.17279617,2624.1,2624.0,5.33533]
[1724055774251,1.17279617,2624.1,2624.0,6.032163]
[1724055774455,1.57096996,2624.1,2624.0,6.032163]
[1724055776199,1.99086524,2624.1,2624.0,6.032163]
[1724055776331,1.57096996,2624.1,2624.0,6.032163]
[1724055776730,1.99086192,2624.1,2624.0,6.032163]
[1724055776982,1.99086192,2624.1,2624.0,5.33533]
[1724055778377,1.99086192,2624.1,2624.0,2.66765]
[1724055778530,0.79257896,2624.1,2624.0,2.66765]
[1724055779166,1.99338349,2624.1,2624.0,2.66765]
[1724055779679,0.79257896,2624.1,2624.0,2.66765]
[1724055779845,1.99345082,2624.1,2624.0,2.66765]
[1724055780023,1.99346376,2624.1,2624.0,2.66765]
[1724055780487,1.97417658,2624.1,2624.0,2.66765]
[1724055780773,2.39408726,2624.1,2624.0,2.66765]
[1724055781538,0.79259768,2624.1,2624.0,2.66765]
[1724055781849,0.79259768,2624.1,2623.9,4.30076]
[1724055782184,2.02184946,2624.0,2623.9,4.30076]
[1724055782537,0.79259275,2624.0,2623.9,4.30076]
[1724055782735,0.37268207,2624.0,2623.9,4.30076]
[1724055782966,2.79503212,2624.0,2623.9,4.30076]
[1724055784562,2.39361671,2624.0,2623.7,1.633]
[1724055784789,1.20077838,2623.8,2623.7,4.3009]
[1724055785165,1.57343575,2623.8,2623.7,4.3009]
[1724055786380,1.17273835,2623.8,2623.7,4.3009]
[1724055786785,1.17273835,2623.8,2623.6,2.66801]
[1724055786984,0.80008098,2623.7,2623.6,4.30101]
[1724055787307,0.80008098,2623.7,2623.6,6.96904]
[1724055787506,0.80008098,2623.8,2623.7,2.66798]
[1724055787674,0.80008098,2623.8,2623.6,6.96904]
[1724055788010,0.80008098,2623.8,2623.7,2.66798]
[1724055788507,0.80008098,2623.8,2623.6,6.96903]
[1724055789015,0.80008098,2623.8,2623.7,2.66798]
[1724055789377,0.80008098,2623.9,2623.7,2.66798]
[1724055794537,0.80008098,2623.8,2623.7,2.66798]
[1724055795828,0.80008098,2623.8,2623.6,6.96902]
[1724055796001,0.80008098,2623.7,2623.6,4.30101]
[1724055796187,1.00016692,2623.7,2623.4,1.633]
[1724055796393,0.80008098,2623.5,2623.4,4.30129]
[1724055797130,0.80008098,2623.5,2623.4,6.96958]
[1724055799605,1.20077838,2623.5,2623.2,2.66843]
[1724055799811,0.80062134,2623.3,2623.1,4.30159]
[1724055800135,1.20077838,2623.2,2623.1,4.30159]
[1724055800332,1.20077838,2623.2,2622.9,4.94329]
[1724055800333,1.60100806,2623.3,2622.9,2.66879]
[1724055800544,1.20117898,2623.0,2622.9,2.66879]
[1724055800710,1.20117898,2623.1,2622.9,2.66879]
[1724055801650,0.80002936,2623.1,2622.9,2.66879]
[1724055802522,0.3725734,2623.0,2622.9,2.66879]
[1724055803324,0.80002936,2623.2,2622.9,2.66879]
[1724055803645,0.3725734,2623.1,2622.9,2.66879]
[1724055804031,1.17260276,2623.1,2622.9,2.66879]
[1724055804614,0.3725734,2623.1,2622.9,2.66879]
[1724055804810,0.3725734,2623.1,2622.8,1.633]
[1724055805011,0.80002936,2623.0,2622.5,2.66914]
[1724055805316,0.80002936,2622.8,2622.4,4.9806]
[1724055805512,0.80411423,2622.7,2622.4,4.9806]
[1724055805738,0.3725734,2622.7,2622.5,2.66915]
[1724055806053,0.80002936,2622.8,2622.5,2.66915]
[1724055806216,0.3725734,2622.6,2622.5,2.66915]
[1724055806416,3.11422936,2622.9,2622.5,2.66915]
[1724055806610,0.3725734,2622.6,2622.5,2.66915]
[1724055806824,0.6184079,2622.8,2622.5,2.66915]
[1724055807053,0.3725734,2622.6,2622.4,4.3023]
[1724055807346,0.3725734,2622.5,2622.4,4.3023]
[1724055807559,0.6184079,2622.8,2622.4,4.3023]
[1724055807710,0.3725734,2622.5,2622.4,6.97155]
[1724055807915,0.37326373,2622.7,2622.4,4.30225]
[1724055808135,0.3725734,2622.6,2622.4,4.30225]
[1724055808547,0.3725734,2622.6,2622.2,7.81111]
[1724055808843,0.3725734,2622.6,2622.3,1.633]
[1724055809282,0.3725734,2622.6,2622.3,4.30239]
[1724055809836,3.2873279,2622.8,2622.3,4.30239]
[1724055810035,0.3725734,2622.5,2622.4,2.66931]
[1724055810239,0.01534406,2622.9,2622.5,2.66916]
[1724055810486,0.01534406,2622.9,2622.5,4.30216]
[1724055815966,0.01534406,2622.9,2622.5,6.60626]
[1724055816169,0.01534406,2622.9,2622.6,2.66908]
[1724055816946,7.34,2623.0,2622.8,2.355]
[1724055817652,0.37243754,2622.9,2622.8,2.355]
[1724055818391,0.37243754,2622.9,2622.8,5.0239]
[1724055818575,0.37243754,2622.9,2622.8,5.956484]
[1724055818755,0.00982015,2623.3,2622.9,2.66879]
[1724055818956,0.37243754,2623.2,2622.9,2.66879]
[1724055819152,0.80984951,2623.3,2622.9,2.66879]
[1724055819368,0.37243754,2623.2,2622.9,2.66873]
[1724055819571,0.80984951,2623.3,2622.9,2.66873]
[1724055819884,3.04102754,2623.1,2622.5,9.24608]
[1724055820100,2.66859,2623.1,2622.5,9.24607]
[1724055820321,0.37243754,2623.0,2622.5,9.24607]
[1724055820470,0.37243754,2623.0,2622.6,2.66908]
[1724055822985,5.88462936,2623.2,2622.7,2.66897]
[1724055823192,0.37243754,2622.9,2622.7,2.66897]
[1724055823381,5.88462936,2623.2,2622.7,2.66897]
[1724055823571,0.37243754,2623.1,2622.7,2.66897]
[1724055823897,1.11924414,2623.1,2622.7,2.66897]
[1724055825997,0.37243754,2623.1,2622.7,4.30195]
[1724055826300,0.37243754,2623.1,2623.0,7.78478]
[1724055826662,7.34,2623.4,2623.2,2.66849]
[1724055827795,7.34,2623.4,2623.2,2.66843]
[1724055827959,7.34,2623.4,2623.3,2.4474]
[1724055829672,7.34,2623.4,2623.2,2.66843]
[1724055830593,0.80984951,2623.6,2623.2,2.66843]
[1724055831821,2.2537,2623.4,2622.9,1.633]
[1724055832025,2.2537,2623.4,2622.8,2.66881]
[1724055832026,0.80002936,2623.3,2622.8,2.66881]
[1724055832160,3.46847936,2623.3,2622.8,2.66881]
[1724055832585,0.37258577,2623.2,2622.7,4.0015]
[1724055832811,3.84112513,2623.2,2622.7,5.03748]
[1724055833091,2.22802283,2623.2,2622.7,4.0015]
[1724055833397,2.22802283,2623.2,2622.8,2.6689]
[1724055833588,1.42799347,2623.2,2622.8,2.6689]
[1724055833958,0.48964228,2623.1,2622.6,2.669]
[1724055834163,6.44257164,2623.1,2622.5,2.6692]
[1724055834408,2.66897,2622.8,2622.2,2.66951]
[1724055834572,3.46898936,2622.8,2622.2,2.66949]
[1724055834895,3.98435636,2622.7,2622.2,2.66949]
[1724055835071,2.66912,2622.6,2622.1,2.4853]
[1724055835272,2.3072,2622.5,2622.0,2.6697]
[1724055835702,0.37258577,2622.4,2622.0,2.6697]
[1724055836372,0.37258577,2622.4,2622.2,2.66951]
[1724055836574,0.80002936,2622.6,2622.1,2.66955]
[1724055836774,0.37258577,2622.5,2622.2,2.66951]
[1724055837361,0.80002936,2622.6,2622.2,2.66951]
[1724055837567,0.37258577,2622.5,2622.2,2.66951]
[1724055837908,0.80002936,2622.6,2622.2,2.66951]
[1724055838076,0.37258577,2622.4,2622.2,2.66951]
[1724055838270,0.80002936,2622.6,2622.2,2.66951]
[1724055838472,0.37246224,2622.3,2622.2,5.11261]
[1724055839098,3.46902936,2622.7,2622.2,5.11261]
[1724055839306,0.37246224,2622.3,2622.2,5.11261]
[1724055839505,0.80002936,2622.6,2622.2,2.4431]
[1724055839677,0.37246224,2622.3,2622.2,5.11261]
[1724055839879,0.80002936,2622.6,2622.2,5.11261]
[1724055840091,0.37246224,2622.3,2622.2,5.11261]
[1724055840308,0.80002936,2622.7,2622.3,5.33874]
[1724055840710,0.80002936,2622.7,2622.3,2.66935]
[1724055840872,0.80002936,2622.7,2622.4,2.6693]
[1724055841072,0.80002936,2622.8,2622.4,2.6693]
[1724055841406,0.80002936,2622.7,2622.4,2.6693]
[1724055841605,0.80002936,2622.7,2622.3,2.66935]
[1724055841812,0.80002936,2622.7,2622.3,5.33869]
[1724055841982,0.80002936,2622.7,2622.3,2.66934]
[1724055842186,0.80002936,2622.7,2622.3,5.33867]
[1724055842893,0.80002936,2622.7,2622.3,2.66933]
[1724055843498,0.80002936,2622.6,2622.3,2.66933]
[1724055843904,0.80002936,2622.7,2622.3,2.66933]
[1724055844617,1.20117898,2622.8,2622.3,2.66933]
[1724055844618,0.80002936,2622.6,2622.3,2.66933]
[1724055844940,0.80002936,2622.6,2622.4,2.6693]
[1724055845076,0.80002936,2622.6,2622.3,5.33868]
[1724055845283,0.80002936,2622.7,2622.3,5.33868]
[1724055846392,0.80002936,2622.6,2622.3,2.66933]
[1724055846999,0.80002936,2622.6,2622.3,5.33868]
[1724055847452,0.80002936,2622.6,2622.3,2.66933]
[1724055847635,1.1724916,2622.5,2622.3,5.33868]
[1724055847943,0.37246224,2622.5,2622.3,2.66933]
[1724055848133,0.37246224,2622.5,2622.4,2.66931]
[1724055858545,0.37246224,2622.5,2622.4,4.30531]
[1724055861762,1.1724916,2622.5,2622.4,2.66931]
[1724055861903,1.1724916,2622.5,2622.3,4.30533]
[1724055862531,1.1724916,2622.5,2622.3,6.97468]
[1724055862717,0.37246224,2622.5,2622.4,2.66931]
[1724055862920,0.80002936,2622.6,2622.4,2.66931]
[1724055863123,0.80002936,2622.6,2622.5,2.6692]
[1724055864150,0.80002936,2622.7,2622.5,2.6692]
[1724055864447,0.80002936,2622.6,2622.5,2.6692]
[1724055865310,0.80002936,2622.7,2622.5,2.6692]
[1724055867337,0.80002936,2622.6,2622.5,2.6692]
[1724055869861,0.80002936,2622.6,2622.4,2.66928]
[1724055870443,0.80002936,2622.6,2622.5,2.6692]
[1724055873726,1.20117898,2622.7,2622.5,2.6692]
[1724055875432,1.20117898,2622.6,2622.5,2.6692]
[1724055875632,1.20117898,2622.7,2622.6,5.3382]
[1724055875832,0.8003685,2622.8,2622.6,0.94036]
[1724055876031,0.8003685,2622.9,2622.8,5.3378]
[1724055876337,0.8003685,2623.1,2623.0,2.66869]
[1724055876541,1.20117898,2623.2,2623.0,4.30464]
[1724055877067,1.60100806,2623.3,2623.0,4.30464]
[1724055877068,1.20117898,2623.1,2623.0,4.30464]
[1724055877427,1.62124563,2623.1,2623.0,4.30464]
[1724055877630,0.3726327,2623.1,2623.0,4.30464]
[1724055878276,1.57381168,2623.1,2623.0,4.30464]
[1724055878446,0.3726327,2623.1,2623.0,4.30464]
[1724055878978,1.17300335,2623.1,2623.0,4.30464]
[1724055879848,1.57381168,2623.1,2623.0,4.30464]
[1724055880234,1.99388761,2623.1,2623.0,4.30464]